{"text_format":"1","workbook":"xlsx","n_sheets":2,"sheets":["Лист2","Лист3"],"not_rendered":{"charts":0,"images":0,"macros":1,"external_links":0,"defined_names":0,"comments":0,"pivot_tables":0},"unopened":[],"bounds":{"document_bytes":16777216,"sheet_cells":100000,"rows_first":2000,"rows_last":500,"rows_between":2000,"halvings":0,"cell_chars":16384,"cell_head_chars":4096},"cells_cut":0,"cells_raw":0,"read":"whole","date_system":"1900"}

{"sheet":"Лист2","index":0,"n_rows":37,"n_cols":2,"rows_kept":37,"cut":false,"hidden":false,"merged":[]}
[" 353823, Краснодарский край, Красноармейский район, ст. Марьянская, 3300 м по направлению на северо-восток от станицы ",{"$f":"ikki(A1)","v":"ст.Марьянская"}]
["350018, Россия, Краснодарский край, г.Краснодар, ул.Сормовская, дом 3, литер В1",{"$f":"ikki(A2)","v":"г.Краснодар, ул.Сормовская"}]
["350000, РФ, Краснодарский край, г.Краснодар, ул. Восточно-Кругликовская, д.56, кв.1","г.Краснодар, ул.Восточно-Кругликовская"]
["352330, Краснодарский край, г. Усть-Лабинск, ул. Кавказская, 31","г.Усть-Лабинск, ул.Кавказская"]
["350018 Краснодар ул Сормоская 2/5","ГОРОД НЕ ВЫДЕЛЕН, ул.Сормоская 2/5"]
["385140, РФ, PА, Тахтамукайский район, пгт. Яблоновский, ул. Дорожная, 216 кв. 55","пгт.Яблоновский, ул.Дорожная"]
["353900 г. Новороссийска, ул. Анапское шоссе, 60","г.Новороссийска, ул.Анапское шоссе"]
["352120, Краснодарский край, Тихорецкий р-н, Тихорецк г, Калинина ул, дом № 27","г.Тихорецк, ул.Калинина"]
["350072, г. Краснодар, ул. Зиповская, 9","г.Краснодар, ул.Зиповская"]
["350080, . г.Краснодар, ул. Уральская, д.95","г.Краснодар, ул.Уральская"]
["350059, г. Краснодар, ул. Новороссийская, 17","г.Краснодар, ул.Новороссийская"]
["350004, Краснодарский край, г. Краснодар, ул. Калинина, д. 125","г.Краснодар, ул.Калинина"]
["350020, Краснодарский край, Краснодар г, Рашпилевская ул, 179/1, кв.402","г.Краснодар, ул.Рашпилевская"]
["350059, Россия, Краснодарский край, г. Краснодар, ул. Сормовская, 1, оф. 310","г.Краснодар, ул.Сормовская"]
["350088, РФ, Краснодарский край, Краснодар г., Сормовская ул., д.185","г.Краснодар, ул.Сормовская"]
["352900, Краснодарский край, г. Армавир, ул. Энгельса, 25","г.Армавир, ул.Энгельса"]
["353357, Краснодарский край, Крымский район, х.Павловский, ул.Дорожная, д. 1","х.Павловский, ул.Дорожная"]
["350039, г. Краснодар, ул.Калинина, д. 1","г.Краснодар, ул.Калинина"]
["350911, г. Краснодар, ул. Трамвайная 5","г.Краснодар, ул.Трамвайная 5"]
["350059, г. Краснодар, ул. Уральская, 128","г.Краснодар, ул.Уральская"]
["350063, г. Краснодар, ул. Кубанская Набережная, д. 7, офис 505","г.Краснодар, ул.Кубанская Набережная"]
["350072, Краснодар, ул. Агрохимическая 103","ГОРОД НЕ ВЫДЕЛЕН, ул.Агрохимическая 103"]
["350062, г. Краснодар, ул. Атарбекова 1/1","г.Краснодар, ул.Атарбекова 1/1"]
["г.Краснодар, ул. им. 40-летия Победы, 33/8","г.Краснодар, ул.им. 40-летия Победы"]
["353230, Краснодарский край, Северский район, п. Ильский, ул. Мира, 263","п.Ильский, ул.Мира"]
["Краснодарский край, г. Крымск, ул. Маршала Жукова 52Г","г.Крымск, ул.Маршала Жукова 52Г"]
["353440, г.Анапа, ул. Крымская, 218","г.Анапа, ул.Крымская"]
["350000, г. Краснодар, ул. Красноармейская, 64/В","г.Краснодар, ул.Красноармейская"]
["353915, г.Новороссийск, ул.Л.Шмидта,39 оф.19","г.Новороссийск, ул.Л.Шмидта"]
["350000, г. Краснодар, ул. Кирова/Длинная, 126/82, офис 401","г.Краснодар, ул.Кирова/Длинная"]
["350000, г. Краснодар, ул. Гимназическая, 65/ ул. Красная, 58","г.Краснодар, ул.Гимназическая"]
["350001, г. Краснодар, ул. Вишняковой, д. 3","г.Краснодар, ул.Вишняковой"]
["385000 Республика Адыгея г. Майкоп ул. Краснооктябрьская 37","г.Майкоп ул. Краснооктябрьская 37"]
["350059 . Краснодарский край, г.Краснодар, ул.Новороссийская, д.172, оф.20","г.Краснодар, ул.Новороссийская"]
["350000, Россия, Краснодарский край, г.Краснодар, ул.Базовская, дом 200/1","г.Краснодар, ул.Базовская"]
["350058, г. Краснодар, ул. Селезнева, 204/3","г.Краснодар, ул.Селезнева"]
["353500, Краснодарский край, г.Темрюк, ул.Володарского,д.6-8","г.Темрюк, ул.Володарского"]

{"sheet":"Лист3","index":1,"n_rows":0,"n_cols":0,"rows_kept":0,"cut":false,"hidden":false,"merged":[]}